fUST/lending_fUST_20250713
["ID","MTS","AMOUNT","RATE_DAILY","PERIOD"]
[371535410,1752340255265,-2647.84,0.0001863,2]
[371535411,1752340255275,-460.0,0.0001863,2]
[371535412,1752340255284,-460.0,0.0001863,2]
[371535413,1752340255294,-1117.83,0.0001863,2]
[371535414,1752340255304,-460.0,0.0001863,2]
[371535415,1752340255313,-577.08,0.0001863,2]
[371535416,1752340255323,-1257.51,0.0001863,2]
[371535417,1752340255334,-460.0,0.0001863,2]
[371535418,1752340255343,-460.0,0.0001863,2]
[371535419,1752340255353,-460.0,0.0001863,2]
[371535420,1752340255363,-460.0,0.0001863,2]
[371535421,1752340255372,-460.0,0.0001863,2]
[371535422,1752340255381,-534.6,0.0001863,2]
[371535423,1752340255391,-460.0,0.0001863,2]
[371535424,1752340255401,-460.0,0.0001863,2]
[371535425,1752340255410,-1137.93,0.0001863,2]
[371535426,1752340255420,-1616.2,0.0001863,2]
[371535427,1752340255430,-584.27,0.0001863,2]
[371535428,1752340255439,-1361.32,0.0001863,2]
[371535429,1752340255449,-460.0,0.0001863,2]
[371535430,1752340255459,-460.0,0.0001863,2]
[371535431,1752340255468,-1001.32,0.0001863,2]
[371535432,1752340255482,-460.0,0.0001863,2]
[371535433,1752340255491,-460.0,0.0001863,2]
[371535434,1752340255500,-460.0,0.0001863,2]
[371535435,1752340255510,-691.13,0.0001863,2]
[371535436,1752340255519,-587.01,0.0001863,2]
[371535437,1752340255529,-571.27,0.0001863,2]
[371535438,1752340255538,-2375.75,0.0001863,2]
[371535439,1752340255549,-460.0,0.0001863,2]
[371535440,1752340255559,-460.0,0.0001863,2]
[371535441,1752340255569,-460.0,0.0001863,2]
[371535442,1752340255582,-460.0,0.0001863,2]
[371535443,1752340255591,-2131.7,0.0001863,2]
[371535444,1752340255602,-460.0,0.0001863,2]
[371535445,1752340255612,-460.0,0.0001863,2]
[371535446,1752340255622,-460.0,0.0001863,2]
[371535447,1752340255631,-460.0,0.0001863,2]
[371535448,1752340255642,-460.0,0.0001863,2]
[371535449,1752340255652,-995.99,0.0001863,2]
[371535450,1752340255661,-473.04,0.0001863,2]
[371535451,1752340255671,-581.95713535,0.0001863,2]
[371535452,1752340255681,-460.0,0.0001863,2]
[371535453,1752340255690,-460.0,0.0001863,2]
[371535454,1752340255700,-460.0,0.0001863,2]
[371535455,1752340255709,-166.925227,0.0001866,2]
[371535456,1752340255720,-500.0,0.00018692,2]
[371535457,1752340255730,-1969.20307314,0.00018866,2]
[371535458,1752340255740,-303.50984859,0.000189,2]
[371535459,1752340255750,-679.9689388,0.000189,2]
[371535460,1752340255759,-151.0,0.000189,2]
[371535461,1752340255769,-303.50984859,0.000189,2]
[371535462,1752340255778,-460.0,0.00018904,2]
[371535463,1752340255787,-460.0,0.00018904,2]
[371535464,1752340255796,-317.66006749,0.00018904,2]
[371535465,1752340255806,-460.0,0.00018904,2]
[371535466,1752340255816,-169.9809629,0.00018904,2]
[371535467,1752340255829,-460.0,0.00018904,2]
[371535468,1752340255839,-460.0,0.00018904,2]
[371535469,1752340255850,-460.0,0.00018904,2]
[371535470,1752340255860,-460.0,0.00018904,2]
[371535471,1752340255870,-460.0,0.00018904,2]
[371535472,1752340255879,-460.0,0.00018904,2]
[371535473,1752340255889,-460.0,0.00018904,2]
[371535474,1752340255898,-460.0,0.00018904,2]
[371535475,1752340255908,-474.05,0.00018904,2]
[371535476,1752340255917,-460.0,0.00018904,2]
[371535477,1752340255927,-460.0,0.00018904,2]
[371535478,1752340255937,-524.06,0.00018904,2]
[371535479,1752340255946,-478.89,0.00018904,2]
[371535480,1752340255955,-460.0,0.00018904,2]
[371535481,1752340255965,-474.34,0.00018904,2]
[371535482,1752340255974,-460.0,0.00018904,2]
[371535483,1752340255983,-2619.32,0.00018904,2]
[371535484,1752340255993,-782.78,0.00018904,2]
[371535485,1752340256002,-460.0,0.00018904,2]
[371535486,1752340256012,-460.0,0.00018904,2]
[371535487,1752340256022,-224.51,0.00018904,2]
[371535488,1752340256031,-545.43,0.00018904,2]
[371535489,1752340256040,-524.08,0.00018904,2]
[371535490,1752340256050,-460.0,0.00018904,2]
[371535491,1752340256059,-460.0,0.00018904,2]
[371535492,1752340256068,-4243.61,0.00018904,2]
[371535493,1752340256077,-460.0,0.00018904,2]
[371535494,1752340256087,-613.83,0.00018904,2]
[371535495,1752340256097,-460.0,0.00018904,2]
[371535496,1752340256106,-460.0,0.00018904,2]
[371535497,1752340256116,-460.0,0.00018904,2]
[371535498,1752340256126,-460.0,0.00018904,2]
[371535499,1752340256136,-460.0,0.00018904,2]
[371535500,1752340256145,-2647.84,0.00018904,2]
[371535501,1752340256154,-460.0,0.00018904,2]
[371535502,1752340256163,-1117.83,0.00018904,2]
[371535503,1752340256173,-460.0,0.00018904,2]
[371535504,1752340256182,-577.08,0.00018904,2]
[371535505,1752340256199,-1257.51,0.00018904,2]
[371535506,1752340256214,-460.0,0.00018904,2]
[371535507,1752340256224,-460.0,0.00018904,2]
[371535508,1752340256237,-460.0,0.00018904,2]
[371535509,1752340256246,-460.0,0.00018904,2]
[371535510,1752340256257,-460.0,0.00018904,2]
[371535511,1752340256267,-534.6,0.00018904,2]
[371535512,1752340256277,-460.0,0.00018904,2]
[371535513,1752340256287,-432.78818793,0.00018904,2]
[371535514,1752340256296,-1137.93,0.00018904,2]
[371535515,1752340256305,-1616.2,0.00018904,2]
[371535516,1752340256315,-584.27,0.00018904,2]
[371535517,1752340256324,-1361.32,0.00018904,2]
[371535518,1752340256334,-460.0,0.00018904,2]
[371535519,1752340256344,-460.0,0.00018904,2]
[371535520,1752340256354,-1001.32,0.00018904,2]
[371535521,1752340256363,-460.0,0.00018904,2]
[371535522,1752340256373,-460.0,0.00018904,2]
[371535523,1752340256382,-460.0,0.00018904,2]
[371535524,1752340256392,-691.13,0.00018904,2]
[371535525,1752340256401,-587.01,0.00018904,2]
[371535526,1752340256411,-571.27,0.00018904,2]
[371535527,1752340256420,-2375.75,0.00018904,2]
[371535528,1752340256429,-187.1,0.00018904,2]
[371535529,1752340256438,-460.0,0.00018904,2]
[371535530,1752340256448,-460.0,0.00018904,2]
[371535531,1752340256457,-2131.7,0.00018904,2]
[371535532,1752340256466,-460.0,0.00018904,2]
[371535533,1752340256477,-460.0,0.00018904,2]
[371535534,1752340256486,-460.0,0.00018904,2]
[371535535,1752340256495,-460.0,0.00018904,2]
[371535536,1752340256505,-460.0,0.00018904,2]
[371535537,1752340256514,-995.99,0.00018904,2]
[371535538,1752340256524,-473.04,0.00018904,2]
[371535539,1752340256533,-460.0,0.00018904,2]
[371535540,1752340256542,-460.0,0.00018904,2]
[371535541,1752340256551,-500.0,0.00018964,2]
[371535542,1752340256561,-2500.0,0.00018964,2]
[371535543,1752340256570,-2500.0,0.00018964,2]
[371535544,1752340256581,-303.50984859,0.00019089,2]
[371535545,1752340256590,-303.50984859,0.00019089,2]
[371535546,1752340256599,-1969.20307314,0.00019107,2]
[371535547,1752340256608,-501.36560506,0.00019173,2]
[371535548,1752340256618,-158.0,0.00019173,2]
[371535549,1752340256627,-502.54304723,0.00019173,2]
[371535550,1752340256637,-500.0,0.00019173,2]
[371535551,1752340256646,-500.0,0.00019173,2]
[371535552,1752340256655,-258.0,0.00019173,2]
[371535553,1752340256664,-500.0,0.00019173,2]
[371535554,1752340256674,-500.0,0.00019173,2]
[371535555,1752340256683,-500.0,0.00019173,2]
[371535556,1752340256808,-500.0,0.00019173,2]
[371535557,1752340256818,-500.0,0.00019173,2]
[371535558,1752340256827,-498.4323488,0.00019173,2]
[371535559,1752340256838,-500.0,0.00019173,2]
[371535560,1752340256847,-500.0,0.00019177,2]
[371535561,1752340256856,-500.0,0.00019177,2]
[371535562,1752340256865,-500.0,0.00019177,2]
[371535563,1752340256874,-500.0,0.00019177,2]
[371535564,1752340256883,-500.0,0.00019177,2]
[371535565,1752340256893,-423.35873265,0.00019177,2]
[371535566,1752340256902,-500.0,0.00019177,2]
[371535567,1752340256912,-500.0,0.00019177,2]
[371535568,1752340256921,-522.10949268,0.00019177,2]
[371535569,1752340256931,-500.0,0.00019177,2]
[371535570,1752340256939,-500.0,0.00019177,2]
[371535571,1752340256949,-500.0,0.00019177,2]
[371535572,1752340256958,-500.0,0.00019177,2]
[371535573,1752340256968,-500.0,0.00019177,2]
[371535574,1752340256977,-500.0,0.00019177,2]
[371535575,1752340256987,-619.09574569,0.00019177,2]
[371535576,1752340256996,-500.0,0.00019177,2]
[371535577,1752340257006,-500.0,0.00019177,2]
[371535578,1752340257015,-500.0,0.00019177,2]
[371535579,1752340257025,-500.0,0.00019177,2]
[371535580,1752340257034,-500.0,0.00019177,2]
[371535581,1752340257044,-500.0,0.00019177,2]
[371535582,1752340257053,-500.0,0.00019177,2]
[371535583,1752340257063,-500.0,0.00019177,2]
[371535584,1752340257072,-500.0,0.00019177,2]
[371535585,1752340257082,-500.0,0.00019177,2]
[371535586,1752340257092,-500.0,0.00019177,2]
[371535587,1752340257101,-460.0,0.00019178,2]
[371535588,1752340257111,-460.0,0.00019178,2]
[371535589,1752340257120,-460.0,0.00019178,2]
[371535590,1752340257129,-336.3544503,0.00019178,2]
[371535591,1752340257139,-739.0,0.00019178,2]
[371535592,1752340257148,-543.84788471,0.00019178,2]
[371535593,1752340257161,-151.85317382,0.00019178,2]
[371535594,1752340257170,-151.0,0.00019178,2]
[371535595,1752340257180,-460.0,0.00019178,2]
[371535596,1752340257192,-460.0,0.00019178,2]
[371535597,1752340257201,-460.0,0.00019178,2]
[371535598,1752340257211,-460.0,0.00019178,2]
[371535599,1752340257220,-500.08560201,0.00019178,2]
[371535600,1752340257230,-474.05,0.00019178,2]
[371535601,1752340257240,-460.0,0.00019178,2]
[371535602,1752340257250,-273.33,0.00019178,2]
[371535603,1752340257259,-478.89,0.00019178,2]
[371535604,1752340257271,-460.0,0.00019178,2]
[371535605,1752340257280,-474.34,0.00019178,2]
[371535606,1752340257290,-460.0,0.00019178,2]
[371535607,1752340257299,-2619.32,0.00019178,2]
[371535608,1752340257309,-782.78,0.00019178,2]
[371535609,1752340257319,-460.0,0.00019178,2]
[371535610,1752340257328,-460.0,0.00019178,2]
[371535611,1752340257338,-545.43,0.00019178,2]
[371535612,1752340257347,-524.08,0.00019178,2]
[371535613,1752340257357,-460.0,0.00019178,2]
[371535614,1752340257366,-460.0,0.00019178,2]
[371535615,1752340257376,-4243.61,0.00019178,2]
[371535616,1752340257385,-613.83,0.00019178,2]
[371535617,1752340257395,-460.0,0.00019178,2]
[371535618,1752340257405,-460.0,0.00019178,2]
[371535619,1752340257415,-460.0,0.00019178,2]
[371535620,1752340257424,-460.0,0.00019178,2]
[371535621,1752340257433,-460.0,0.00019178,2]
[371535622,1752340257442,-2647.84,0.00019178,2]
[371535623,1752340257452,-460.0,0.00019178,2]
[371535624,1752340257461,-1117.83,0.00019178,2]
[371535625,1752340257472,-460.0,0.00019178,2]
[371535626,1752340257481,-577.08,0.00019178,2]
[371535627,1752340257491,-1257.51,0.00019178,2]
[371535628,1752340257500,-460.0,0.00019178,2]
[371535629,1752340257509,-460.0,0.00019178,2]
[371535630,1752340257518,-460.0,0.00019178,2]
[371535631,1752340257527,-460.0,0.00019178,2]
[371535632,1752340257537,-350.45015773,0.00019178,2]
[371535633,1752340257546,-534.6,0.00019178,2]
[371535634,1752340257556,-460.0,0.00019178,2]
[371535635,1752340257565,-1137.93,0.00019178,2]
[371535636,1752340257575,-1616.2,0.00019178,2]
[371535637,1752340257586,-584.27,0.00019178,2]
[371535638,1752340257596,-1361.32,0.00019178,2]
[371535639,1752340257605,-460.0,0.00019178,2]
[371535640,1752340257615,-460.0,0.00019178,2]
[371535641,1752340257625,-1001.32,0.00019178,2]
[371535642,1752340257634,-460.0,0.00019178,2]
[371535643,1752340257643,-460.0,0.00019178,2]
[371535644,1752340257652,-460.0,0.00019178,2]
[371535645,1752340257662,-691.13,0.00019178,2]
[371535646,1752340257672,-587.01,0.00019178,2]
[371535647,1752340257682,-571.27,0.00019178,2]
[371535648,1752340257691,-2375.75,0.00019178,2]
[371535649,1752340257700,-460.0,0.00019178,2]
[371535650,1752340257709,-460.0,0.00019178,2]
[371535651,1752340257719,-2131.7,0.00019178,2]
[371535652,1752340257729,-460.0,0.00019178,2]
[371535653,1752340257740,-460.0,0.00019178,2]
[371535654,1752340257751,-460.0,0.00019178,2]
[371535655,1752340257760,-460.0,0.00019178,2]
[371535656,1752340257769,-460.0,0.00019178,2]
[371535657,1752340257779,-995.99,0.00019178,2]
[371535658,1752340257788,-473.04,0.00019178,2]
[371535659,1752340257798,-460.0,0.00019178,2]
[371535660,1752340257808,-460.0,0.00019178,2]
[371535661,1752340257818,-500.0,0.00019178,2]
[371535662,1752340257827,-338.61259214,0.00019178,2]
[371535663,1752340257838,-666.0,0.00019178,2]
[371535664,1752340257847,-48154.9889144,0.00019178,2]
[371535665,1752340257857,-5000.0,0.00019178,2]
[371535666,1752340257867,-5000.0,0.00019178,2]
[371535667,1752340257876,-5000.0,0.00019178,2]
[371535668,1752340257885,-5000.0,0.00019178,2]
[371535669,1752340257895,-5000.0,0.00019178,2]
[371535670,1752340257904,-5000.0,0.00019178,2]
[371535671,1752340257914,-2010.35104184,0.00019178,2]
[371535672,1752340257924,-661.767978,0.00019178,2]
[371535673,1752340257934,-493.09,0.000192,2]
[371535674,1752340257944,-27885.29,0.000192,2]
[371535675,1752340257953,-4162.17,0.000192,2]
[371535676,1752340257964,-739.0,0.00019205,2]
[371535677,1752340257974,-151.0,0.00019205,2]
[371535678,1752340257986,-739.0,0.00019233,2]
[371535679,1752340257997,-199.04772792,0.00019233,2]
[371535680,1752340258008,-739.0,0.0001926,2]
[371535681,1752340258018,-303.50984859,0.00019278,2]
[371535682,1752340258027,-303.50984859,0.00019278,2]
[371535683,1752340258037,-739.0,0.00019288,2]
[371535684,1752340258047,-739.0,0.00019315,2]
[371535685,1752340258056,-100000.0,0.00019329,2]
[371535686,1752340258066,-739.0,0.00019342,2]
[371535687,1752340258075,-1969.20307314,0.00019348,2]
[371535688,1752340258086,-739.0,0.0001937,2]
[371535689,1752340258096,-739.0,0.00019397,2]
[371535690,1752340258106,-739.0,0.00019425,2]
[371535691,1752340258116,-739.0,0.00019452,2]
[371535692,1752340258125,-460.0,0.00019452,2]
[371535693,1752340258135,-460.0,0.00019452,2]
[371535694,1752340258144,-460.0,0.00019452,2]
[371535695,1752340258154,-460.0,0.00019452,2]
[371535696,1752340258163,-460.0,0.00019452,2]
[371535697,1752340258173,-460.0,0.00019452,2]
[371535698,1752340258182,-474.05,0.00019452,2]
[371535699,1752340258197,-460.0,0.00019452,2]
[371535700,1752340258207,-478.89,0.00019452,2]
[371535701,1752340258218,-460.0,0.00019452,2]
[371535702,1752340258227,-474.34,0.00019452,2]
[371535703,1752340258238,-461.18,0.00019452,2]
[371535704,1752340258249,-2619.32,0.00019452,2]
[371535705,1752340258259,-782.78,0.00019452,2]
[371535706,1752340258270,-460.0,0.00019452,2]
[371535707,1752340258280,-545.43,0.00019452,2]
[371535708,1752340258289,-524.08,0.00019452,2]
[371535709,1752340258298,-460.0,0.00019452,2]
[371535710,1752340258307,-4243.61,0.00019452,2]
[371535711,1752340258316,-613.83,0.00019452,2]
[371535712,1752340258326,-460.0,0.00019452,2]
[371535713,1752340258336,-191.27609319,0.00019452,2]
[371535714,1752340258346,-460.0,0.00019452,2]
[371535715,1752340258355,-460.0,0.00019452,2]
[371535716,1752340258364,-460.0,0.00019452,2]
[371535717,1752340258374,-2647.84,0.00019452,2]
[371535718,1752340258384,-460.0,0.00019452,2]
[371535719,1752340258394,-1117.83,0.00019452,2]
[371535720,1752340258403,-460.0,0.00019452,2]
[371535721,1752340258413,-577.08,0.00019452,2]
[371535722,1752340258423,-1257.51,0.00019452,2]
[371535723,1752340258433,-460.0,0.00019452,2]
[371535724,1752340258443,-460.0,0.00019452,2]
[371535725,1752340258453,-460.0,0.00019452,2]
[371535726,1752340258462,-534.6,0.00019452,2]
[371535727,1752340258472,-460.0,0.00019452,2]
[371535728,1752340258483,-1137.93,0.00019452,2]
[371535729,1752340258493,-1616.2,0.00019452,2]
[371535730,1752340258502,-584.27,0.00019452,2]
[371535731,1752340258512,-1361.32,0.00019452,2]
[371535732,1752340258521,-460.0,0.00019452,2]
[371535733,1752340258535,-460.0,0.00019452,2]
[371535734,1752340258548,-1001.32,0.00019452,2]
[371535735,1752340258557,-460.0,0.00019452,2]
[371535736,1752340258577,-460.0,0.00019452,2]
[371535737,1752340258587,-460.0,0.00019452,2]
[371535738,1752340258597,-691.13,0.00019452,2]
[371535739,1752340258607,-587.01,0.00019452,2]
[371535740,1752340258617,-571.27,0.00019452,2]
[371535741,1752340258627,-2375.75,0.00019452,2]
[371535742,1752340258636,-228.54568651,0.00019452,2]
[371535743,1752340258645,-460.0,0.00019452,2]
[371535744,1752340258655,-460.0,0.00019452,2]
[371535745,1752340258664,-2131.7,0.00019452,2]
[371535746,1752340258674,-460.0,0.00019452,2]
[371535747,1752340258684,-520.33762507,0.00019452,2]
[371535748,1752340258693,-460.0,0.00019452,2]
[371535749,1752340258703,-460.0,0.00019452,2]
[371535750,1752340258712,-995.99,0.00019452,2]
[371535751,1752340258722,-473.04,0.00019452,2]
[371535752,1752340258731,-460.0,0.00019452,2]
[371535753,1752340258741,-460.0,0.00019452,2]
[371535754,1752340258751,-303.50984859,0.00019467,2]
[371535755,1752340258762,-303.50984859,0.00019467,2]
[371535756,1752340258771,-739.0,0.00019479,2]
[371535757,1752340258781,-739.0,0.00019507,2]
[371535758,1752340258791,-500.0,0.00019512,2]
[371535759,1752340258801,-739.0,0.00019534,2]
[371535760,1752340258810,-739.0,0.00019562,2]
[371535761,1752340258819,-739.0,0.00019589,2]
[371535762,1752340258829,-1969.20307314,0.0001959,2]
[371535763,1752340258838,-739.0,0.00019616,2]
[371535764,1752340258847,-739.0,0.00019644,2]
[371535765,1752340258857,-5000.0,0.00019647,2]
[371535766,1752340258866,-303.50984859,0.00019656,2]
[371535767,1752340258876,-303.50984859,0.00019656,2]
[371535768,1752340258885,-739.0,0.00019671,2]
[371535769,1752340258895,-739.0,0.00019699,2]
[371535770,1752340258913,-1001.22281008,0.00019721,2]
[371535771,1752340258923,-1000.0,0.00019721,2]
[371535772,1752340258932,-1000.0,0.00019721,2]
[371535773,1752340258942,-1000.0,0.00019721,2]
[371535774,1752340258952,-500.0,0.00019721,2]
[371535775,1752340258963,-739.0,0.00019726,2]
[371535776,1752340258973,-460.0,0.00019726,2]
[371535777,1752340258983,-460.0,0.00019726,2]
[371535778,1752340258993,-460.0,0.00019726,2]
[371535779,1752340259003,-460.0,0.00019726,2]
[371535780,1752340259012,-460.0,0.00019726,2]
[371535781,1752340259022,-460.0,0.00019726,2]
[371535782,1752340259031,-474.05,0.00019726,2]
[371535783,1752340259040,-460.0,0.00019726,2]
[371535784,1752340259051,-478.89,0.00019726,2]
[371535785,1752340259060,-460.0,0.00019726,2]
[371535786,1752340259070,-474.34,0.00019726,2]
[371535787,1752340259080,-2619.32,0.00019726,2]
[371535788,1752340259089,-782.78,0.00019726,2]
[371535789,1752340259098,-460.0,0.00019726,2]
[371535790,1752340259109,-545.43,0.00019726,2]
[371535791,1752340259119,-524.08,0.00019726,2]
[371535792,1752340259131,-460.0,0.00019726,2]
[371535793,1752340259141,-4243.61,0.00019726,2]
[371535794,1752340259151,-613.83,0.00019726,2]
[371535795,1752340259161,-460.0,0.00019726,2]
[371535796,1752340259170,-432.87,0.00019726,2]
[371535797,1752340259180,-460.0,0.00019726,2]
[371535798,1752340259191,-460.0,0.00019726,2]
[371535799,1752340259202,-2647.84,0.00019726,2]
[371535800,1752340259211,-460.0,0.00019726,2]
[371535801,1752340259220,-1117.83,0.00019726,2]
[371535802,1752340259231,-577.08,0.00019726,2]
[371535803,1752340259241,-1257.51,0.00019726,2]
[371535804,1752340259250,-460.0,0.00019726,2]
[371535805,1752340259260,-460.0,0.00019726,2]
[371535806,1752340259270,-460.0,0.00019726,2]
[371535807,1752340259279,-534.6,0.00019726,2]
[371535808,1752340259290,-460.0,0.00019726,2]
[371535809,1752340259301,-1137.93,0.00019726,2]
[371535810,1752340259311,-1616.2,0.00019726,2]
[371535811,1752340259321,-584.27,0.00019726,2]
[371535812,1752340259331,-1361.32,0.00019726,2]
[371535813,1752340259340,-460.0,0.00019726,2]
[371535814,1752340259350,-1001.32,0.00019726,2]
[371535815,1752340259360,-460.0,0.00019726,2]
[371535816,1752340259369,-460.0,0.00019726,2]
[371535817,1752340259378,-460.0,0.00019726,2]
[371535818,1752340259389,-691.13,0.00019726,2]
[371535819,1752340259399,-587.01,0.00019726,2]
[371535820,1752340259410,-571.27,0.00019726,2]
[371535821,1752340259420,-2375.75,0.00019726,2]
[371535822,1752340259430,-460.0,0.00019726,2]
[371535823,1752340259440,-460.0,0.00019726,2]
[371535824,1752340259450,-2131.7,0.00019726,2]
[371535825,1752340259461,-460.0,0.00019726,2]
[371535826,1752340259471,-460.0,0.00019726,2]
[371535827,1752340259480,-460.0,0.00019726,2]
[371535828,1752340259490,-995.99,0.00019726,2]
[371535829,1752340259500,-473.04,0.00019726,2]
[371535830,1752340259510,-460.0,0.00019726,2]
[371535831,1752340259519,-460.0,0.00019726,2]
[371535832,1752340259528,-739.0,0.00019753,2]
[371535833,1752340259652,-739.0,0.00019781,2]
[371535834,1752340259662,-753.0,0.00019808,2]
[371535835,1752340259672,-1969.20307314,0.00019831,2]
[371535836,1752340259681,-455.26477289,0.00019845,4]
[371535837,1752340259690,-455.26477289,0.00019845,4]
[371535838,1752340259700,-281.58,0.00019846,2]
[371535839,1752340259710,-857.4953208,0.00019945,2]
[371535840,1752340259719,-151.0,0.0002,2]
[371535841,1752340259729,-460.0,0.0002,2]
[371535842,1752340259740,-90258.0,0.0002,2]
[371535843,1752340259750,-460.0,0.0002,2]
[371535844,1752340259759,-460.0,0.0002,2]
[371535845,1752340259769,-460.0,0.0002,2]
[371535846,1752340259779,-460.0,0.0002,2]
[371535847,1752340259790,-474.05,0.0002,2]
[371535848,1752340259799,-460.0,0.0002,2]
[371535849,1752340259809,-478.89,0.0002,2]
[371535850,1752340259818,-460.0,0.0002,2]
[371535851,1752340259827,-474.34,0.0002,2]
[371535852,1752340259837,-2619.32,0.0002,2]
[371535853,1752340259846,-782.78,0.0002,2]
[371535854,1752340259855,-460.0,0.0002,2]
[371535855,1752340259865,-545.43,0.0002,2]
[371535856,1752340259874,-524.08,0.0002,2]
[371535857,1752340259883,-213.89,0.0002,2]
[371535858,1752340259892,-4243.61,0.0002,2]
[371535859,1752340259902,-613.83,0.0002,2]
[371535860,1752340259911,-460.0,0.0002,2]
[371535861,1752340259920,-175.81,0.0002,2]
[371535862,1752340259929,-460.0,0.0002,2]
[371535863,1752340259938,-2647.84,0.0002,2]
[371535864,1752340259948,-460.0,0.0002,2]
[371535865,1752340259957,-1117.83,0.0002,2]
[371535866,1752340259967,-577.08,0.0002,2]
[371535867,1752340259976,-1257.51,0.0002,2]
[371535868,1752340259985,-460.0,0.0002,2]
[371535869,1752340259994,-460.0,0.0002,2]
[371535870,1752340260003,-460.0,0.0002,2]
[371535871,1752340260012,-534.6,0.0002,2]
[371535872,1752340260021,-460.0,0.0002,2]
[371535873,1752340260030,-1137.93,0.0002,2]
[371535874,1752340260040,-1616.2,0.0002,2]
[371535875,1752340260049,-584.27,0.0002,2]
[371535876,1752340260059,-1361.32,0.0002,2]
[371535877,1752340260068,-460.0,0.0002,2]
[371535878,1752340260077,-1001.32,0.0002,2]
[371535879,1752340260087,-460.0,0.0002,2]
[371535880,1752340260096,-460.0,0.0002,2]
[371535881,1752340260106,-460.0,0.0002,2]
[371535882,1752340260115,-691.13,0.0002,2]
[371535883,1752340260125,-587.01,0.0002,2]
[371535884,1752340260134,-571.27,0.0002,2]
[371535885,1752340260143,-2375.75,0.0002,2]
[371535886,1752340260153,-460.0,0.0002,2]
[371535887,1752340260162,-460.0,0.0002,2]
[371535888,1752340260172,-2131.7,0.0002,2]
[371535889,1752340260182,-460.0,0.0002,2]
[371535890,1752340260202,-593.9598513,0.0002,2]
[371535891,1752340260214,-460.0,0.0002,2]
[371535892,1752340260225,-995.99,0.0002,2]
[371535893,1752340260234,-473.04,0.0002,2]
[371535894,1752340260245,-460.0,0.0002,2]
[371535895,1752340260254,-460.0,0.0002,2]
[371535896,1752340260264,-455.26477289,0.00020034,4]
[371535897,1752340260274,-455.26477289,0.00020034,4]
[371535898,1752340260284,-1969.20307314,0.00020072,2]
[371535899,1752340260294,-1906.86707136,0.00020173,2]
[371535900,1752340260305,-455.26477289,0.00020223,4]
[371535901,1752340260315,-455.26477289,0.00020223,4]
[371535902,1752340260324,-1500.0,0.00020268,2]
[371535903,1752340260335,-483.444475,0.00020268,2]
[371535904,1752340260345,-1500.0,0.00020268,2]
[371535905,1752340260355,-460.0,0.00020273,2]
[371535906,1752340260365,-490.83488138,0.00020273,2]
[371535907,1752340260375,-460.0,0.00020273,2]
[371535908,1752340260385,-460.0,0.00020273,2]
[371535909,1752340260395,-474.05,0.00020273,2]